bitfinex-derivatives/quotes_ETHF0:USTF0_20241023
["timestamp","ask_amount","ask_price","bid_price","bid_amount"]
[1729705782114,3.6075,2504.2,2504.1,41.19972]
[1729705783919,3.2078,2504.2,2503.7,0.15785293]
[1729705784126,7.69724811,2504.2,2503.3,7.3274]
[1729705784418,7.69724811,2504.2,2503.6,0.39979]
[1729705784419,0.3998,2503.7,2503.6,0.39979]
[1729705784719,0.99931,2504.1,2503.6,3.12]
[1729705785014,2.36308,2503.8,2503.7,0.39977]
[1729705786111,0.39978,2503.7,2503.6,3.51979]
[1729705787211,2.36308,2503.8,2503.7,0.39978]
[1729705788522,1.39448,2503.8,2503.7,0.39978]
[1729705788818,1.9234,2503.8,2503.7,0.39978]
[1729705790316,0.39978,2503.7,2503.6,3.68198124]
[1729705790620,2.32317,2503.8,2503.7,0.39978]
[1729705792217,1.9234,2503.8,2503.7,0.39978]
[1729705792416,2.32317,2503.8,2503.7,0.39978]
[1729705792619,1.9234,2503.8,2503.7,0.39978]
[1729705793024,1.9234,2503.8,2503.7,4.39418]
[1729705793218,3.2078,2504.2,2503.7,3.9944]
[1729705793419,3.25348,2504.4,2504.3,0.39969]
[1729705794919,2.8538,2504.4,2504.3,3.51969]
[1729705795122,1.9322,2504.4,2504.3,3.51969]
[1729705795628,1.9322,2504.4,2504.3,44.31969]
[1729705796515,0.926,2504.4,2504.3,48.31249]
[1729705797130,0.926,2504.4,2504.3,51.52029]
[1729705799321,3.2078,2504.9,2504.3,51.52029]
[1729705799527,4.54399,2504.9,2504.8,3.51961]
[1729705799726,4.1444,2504.9,2504.8,3.51961]
[1729705799929,0.9366,2504.9,2504.8,7.51161]
[1729705800529,1.33084,2505.3,2505.2,0.39954]
[1729705800836,0.9196,2505.4,2505.3,0.39953]
[1729705801028,3.2078,2505.5,2505.4,0.39951]
[1729705801222,1.31979,2505.6,2505.3,3.12]
[1729705801223,0.9203,2505.6,2505.3,3.12]
[1729705801424,0.9203,2505.6,2505.4,0.3995]
[1729705801425,0.39951,2505.5,2505.4,0.3995]
[1729705801739,0.39951,2505.5,2505.4,41.1995]
[1729705802035,1.30081,2505.5,2505.4,40.8]
[1729705802832,0.9013,2505.5,2505.4,45.19071]
[1729705803132,3.2078,2505.8,2505.4,41.19951]
[1729705803326,3.60726,2505.8,2505.7,3.51946]
[1729705803533,3.2078,2505.8,2505.7,3.51946]
[1729705803726,3.60725,2505.8,2505.7,3.51946]
[1729705803929,1.26804,2505.9,2505.8,0.39945]
[1729705804131,0.39945,2505.8,2505.7,3.51945]
[1729705804437,1.26804,2505.9,2505.8,0.39945]
[1729705804731,0.8686,2505.9,2505.7,3.12]
[1729705804933,0.8686,2505.9,2505.4,40.8]
[1729705804934,0.39948,2505.6,2505.4,41.36013343]
[1729705805134,2.1985,2505.5,2505.4,40.96063343]
[1729705805329,0.39951,2505.4,2505.3,3.51952]
[1729705805738,0.39951,2505.4,2505.3,44.31952]
[1729705806235,0.39951,2505.4,2505.3,3.12]
[1729705806441,0.39951,2505.4,2505.3,3.51953]
[1729705806932,0.39951,2505.4,2505.3,3.12]
[1729705808737,5.0068,2505.5,2505.1,3.51955]
[1729705808940,0.39954,2505.2,2505.1,3.51955]
[1729705809237,0.39954,2505.2,2505.1,3.12]
[1729705809433,0.39954,2505.2,2505.1,3.51956]
[1729705810337,0.39954,2505.2,2505.1,3.12]
[1729705811041,0.8987,2505.3,2505.1,3.12]
[1729705811232,0.8987,2505.3,2505.2,0.39954]
[1729705811638,1.29823,2505.3,2505.2,0.39954]
[1729705811839,0.39954,2505.2,2505.1,3.51955]
[1729705812142,0.39954,2505.2,2505.1,3.12]
[1729705812442,0.39954,2505.2,2504.8,3.36417578]
[1729705812443,0.39959,2504.9,2504.8,3.2078]
[1729705812630,0.39959,2504.9,2504.8,6.72741]
[1729705812827,0.39959,2504.9,2504.8,47.52741]
[1729705812828,4.68874201,2504.9,2504.8,47.52741]
[1729705813029,0.39959,2504.9,2504.8,47.52741]
[1729705813439,0.39958,2505.0,2504.9,0.39958]
[1729705813744,0.39958,2505.0,2504.9,3.51958]
[1729705815842,0.39957,2505.1,2505.0,0.39956]
[1729705817135,0.8619,2505.2,2504.9,3.51959]
[1729705817136,0.39958,2505.0,2504.9,3.51959]
[1729705819935,0.8817,2505.1,2504.8,47.1278]
[1729705820136,0.39959,2504.9,2504.8,44.0078]
[1729705820344,0.39959,2504.9,2504.8,40.8]
[1729705820547,4.8542748,2504.9,2504.8,40.8]
[1729705820848,8.8462748,2504.9,2504.8,40.8]
[1729705821036,8.4466848,2504.9,2504.5,0.39965]
[1729705821245,0.9411,2504.8,2504.4,0.39966]
[1729705821442,0.39967,2504.5,2504.4,0.39966]
[1729705821648,0.39967,2504.5,2504.4,41.19966]
[1729705821838,0.39967,2504.5,2504.4,40.8]
[1729705822039,0.99923,2504.3,2503.2,4.24551646]
[1729705822240,0.39983,2503.4,2503.3,0.39985]
[1729705822949,0.39985,2503.3,2503.2,3.2078]
[1729705823554,0.39985,2503.3,2503.2,44.0078]
[1729705824346,0.39985,2503.3,2503.2,44.40766]
[1729705825052,0.39985,2503.3,2503.2,44.0078]
[1729705825351,0.39985,2503.3,2503.2,44.40766]
[1729705826750,0.9411,2503.6,2503.2,47.1278]
[1729705826957,0.39977,2503.8,2503.7,0.39978]
[1729705827256,0.99932,2504.1,2503.4,3.12]
[1729705827257,0.39979,2503.7,2503.6,0.39979]
[1729705827655,0.39979,2503.7,2503.6,4.39419]
[1729705828652,0.39979,2503.7,2503.2,45.00745]
[1729705828653,0.39985,2503.3,2503.2,40.8]
[1729705828946,1.38796,2503.3,2503.2,41.19986]
[1729705829150,1.38796,2503.3,2503.2,40.8]
[1729705830546,1.38796,2503.3,2503.2,41.19986]
[1729705830743,1.38796,2503.3,2503.2,40.8]
[1729705831943,4.50796,2503.3,2503.2,40.8]
[1729705832144,8.74493537,2503.3,2503.2,40.8]
[1729705832348,8.74493973,2503.3,2503.2,40.8]
[1729705833255,8.74493904,2503.3,2503.2,40.8]
[1729705834058,0.3999,2503.0,2502.9,3.2078]
[1729705834254,1.38801,2503.0,2502.9,3.2078]
[1729705834954,1.38801,2503.0,2502.9,44.0078]
[1729705835847,1.38801,2503.0,2502.9,40.8]
[1729705839858,1.38801,2503.0,2502.9,41.19991]
[1729705840054,0.39987,2503.2,2503.1,0.39986]
[1729705840550,0.98811,2503.2,2502.9,43.92]
[1729705840753,1.388,2503.1,2503.0,0.39988]
[1729705841045,0.98811,2503.1,2503.0,0.39988]
[1729705841962,1.38799,2503.1,2503.0,0.39988]
[1729705842252,0.98811,2503.1,2503.0,0.39988]
[1729705843051,1.38799,2503.1,2503.0,0.39988]
[1729705847454,0.98811,2503.1,2503.0,0.39988]
[1729705848759,1.38799,2503.1,2503.0,0.39988]
[1729705848961,0.3999,2503.0,2502.9,41.1999]
[1729705849158,0.98811,2503.1,2503.0,0.3999]
[1729705849463,1.38799,2503.1,2503.0,0.3999]
[1729705851163,0.98811,2503.1,2503.0,3.5199]
[1729705851864,1.536,2504.3,2503.7,0.39977]
[1729705851865,0.39978,2503.8,2503.7,0.39977]
[1729705852161,1.7382,2503.9,2503.8,0.39977]
[1729705852462,0.98811,2503.9,2503.8,0.39977]
[1729705852658,1.38786,2503.9,2503.8,0.39977]
[1729705852860,1.38786,2503.9,2503.8,40.8]
[1729705853557,1.38786,2503.9,2503.8,41.19977]
[1729705853761,1.38786,2503.9,2503.8,40.8]
[1729705854354,6.01353762,2503.9,2503.8,40.8]
[1729705854968,0.39977,2503.8,2503.7,3.2078]
[1729705855162,6.08757,2503.8,2503.7,0.83199]
[1729705855466,0.99948,2503.7,2503.5,40.8]
[1729705855658,0.3998,2503.6,2503.5,40.8]
[1729705855859,8.82046122,2503.6,2503.5,40.8]
[1729705856063,8.82046122,2503.6,2503.5,41.19982]
[1729705856259,4.82606122,2503.6,2503.5,41.19982]
[1729705856765,4.42626122,2503.6,2503.5,44.31982]
[1729705857062,1.24307,2503.8,2503.7,0.39978]
[1729705857468,0.3998,2503.7,2503.6,0.39979]
[1729705858869,1.24308,2503.8,2503.7,0.39978]
[1729705859068,0.9175,2504.0,2503.6,3.12]
[1729705859256,1.31724,2504.0,2503.9,0.39975]
[1729705860470,3.60753,2504.1,2504.0,0.39974]
[1729705861557,3.2078,2504.7,2504.0,10.72114]
[1729705861761,5.7653,2505.0,2504.6,3.51964]
[1729705862062,5.7653,2505.0,2504.7,0.39962]
[1729705862063,0.39961,2504.8,2504.7,0.39962]
[1729705862267,0.39961,2504.8,2504.7,41.19962]
[1729705862467,0.39961,2504.9,2504.8,0.3996]
[1729705863167,10.61048245,2505.0,2504.9,0.39959]
[1729705863362,7.65340245,2505.0,2504.9,0.39959]
[1729705867667,4.44560245,2505.0,2504.9,0.39959]
[1729705868069,1.28383,2505.3,2505.2,0.39954]
[1729705868275,0.8843,2505.3,2505.2,0.39954]
[1729705868469,1.28383,2505.3,2505.2,0.39954]
[1729705868771,4.0414,2505.4,2505.3,0.39953]
[1729705869866,0.8977,2505.6,2505.2,3.12]
[1729705870177,1.29719,2505.6,2505.5,0.3995]
[1729705870470,5.1645419,2505.6,2505.5,0.3995]
[1729705870874,1.24176,2505.8,2505.5,0.3995]
[1729705870875,0.8891,2505.9,2505.5,0.3995]
[1729705871075,0.8891,2505.9,2505.8,0.39945]
[1729705871281,0.9157,2506.1,2505.8,3.12]
[1729705871570,0.39943,2505.9,2505.6,4.0363]
[1729705871780,0.9157,2506.1,2505.6,4.0363]
[1729705872070,0.39942,2506.0,2505.9,40.8]
[1729705872276,4.61549488,2506.0,2505.9,40.8]
[1729705872669,4.61549488,2506.0,2505.9,41.19943]
[1729705872868,4.61549488,2506.0,2505.9,40.8]
[1729705873070,4.61549488,2506.0,2505.9,41.19943]
[1729705873271,4.61549488,2506.0,2505.9,40.8]
[1729705873472,8.60589488,2506.0,2505.9,40.8]
[1729705873673,0.39945,2505.8,2505.7,0.39946]
[1729705873873,0.8847,2505.9,2505.4,6.3278]
[1729705874069,0.39947,2505.7,2505.6,0.39948]
[1729705874379,0.39948,2505.6,2505.5,40.8]
[1729705874879,0.8365,2505.8,2505.4,3.2078]
[1729705874880,0.3995,2505.5,2505.4,3.2078]
[1729705875077,1.26499,2505.6,2505.4,3.6073]
[1729705875274,1.26499,2505.6,2505.5,0.3995]
[1729705875474,0.8655,2505.6,2505.4,44.0078]
[1729705875682,0.8655,2505.6,2505.5,0.3995]
[1729705875683,1.26499,2505.6,2505.5,0.3995]
[1729705875978,0.3995,2505.5,2505.4,44.4073]
[1729705876181,1.26498,2505.6,2505.5,0.3995]
[1729705876381,1.26499,2505.6,2505.5,0.3995]
[1729705876882,0.3995,2505.5,2505.4,44.40731]
[1729705878080,1.26499,2505.6,2505.5,0.3995]
[1729705879779,0.3995,2505.5,2505.4,44.4073]
[1729705880179,0.8655,2505.6,2505.4,44.0078]
[1729705880377,0.39949,2505.6,2505.5,3.5195]
[1729705880576,3.2078,2506.0,2505.5,3.12]
[1729705880781,0.39948,2505.7,2505.6,0.39947]
[1729705881077,4.79642912,2505.7,2505.6,0.39947]
[1729705881685,0.39948,2505.6,2505.5,3.51949]
[1729705882088,4.79642912,2505.7,2505.6,0.39948]
[1729705882288,4.39694912,2505.7,2505.6,0.39948]
[1729705882486,1.26646,2505.8,2505.7,0.39946]
[1729705882487,4.98654727,2505.8,2505.7,0.39946]
[1729705882780,0.39946,2505.8,2505.7,0.39946]
[1729705882986,5.0107314,2505.8,2505.7,0.39946]
[1729705883589,4.6112714,2505.8,2505.7,3.12]
[1729705883888,0.8872,2506.1,2505.7,6.3278]
[1729705884072,0.8872,2506.1,2506.0,0.39942]
[1729705884073,1.28662,2506.1,2506.0,0.39942]
[1729705884388,5.67061233,2506.1,2506.0,0.39942]
[1729705886889,5.27119233,2506.1,2505.8,0.883]
[1729705887388,0.39943,2505.9,2505.8,0.39944]
[1729705888993,0.39943,2505.9,2505.7,6.3278]
[1729705889189,0.39943,2505.9,2505.8,0.39945]
[1729705889786,0.39943,2506.0,2505.9,0.39942]
[1729705890097,5.27119233,2506.1,2506.0,0.39942]
[1729705890098,5.67060233,2506.1,2506.0,0.39942]
[1729705890396,0.39943,2506.0,2505.9,0.39942]
[1729705890796,5.27119233,2506.1,2505.7,6.3278]
[1729705891089,0.39945,2505.9,2505.8,0.39944]
[1729705892990,5.27119233,2506.1,2505.7,6.3278]
[1729705893198,0.39943,2506.0,2505.9,0.39942]
[1729705894395,0.8707,2506.2,2505.9,7.1104]
[1729705894593,0.8707,2506.2,2506.1,0.3994]
[1729705894790,1.27008,2506.2,2506.1,0.3994]
[1729705897298,0.39936,2506.4,2506.1,7.1104]
[1729705897487,1.08505,2506.5,2506.4,0.39935]
[1729705897893,0.39935,2506.5,2506.4,0.39935]
[1729705898600,0.39935,2506.5,2506.4,41.19935]
[1729705899299,4.38895,2506.5,2506.4,40.8]
[1729705899497,8.24061358,2506.5,2506.3,0.39936]
[1729705899799,0.39939,2506.3,2506.2,0.39937]
[1729705899998,0.39939,2506.3,2506.2,41.19937]
[1729705901598,1.3819,2506.4,2506.2,40.8]
[1729705901599,1.78127,2506.4,2506.2,40.8]
[1729705901901,0.39937,2506.3,2506.2,41.19937]
[1729705902200,1.78127,2506.4,2506.3,0.39937]
[1729705902790,1.3819,2506.4,2506.1,3.12]
[1729705902989,3.12,2506.2,2505.7,3.2078]
[1729705903200,0.39945,2505.8,2505.7,3.2078]
[1729705903398,0.39945,2505.8,2505.7,3.60726]
[1729705903598,4.82292951,2505.8,2505.7,3.2078]
[1729705903897,4.82292951,2505.8,2505.7,3.60726]
[1729705904103,4.82292951,2505.8,2505.7,0.39946]
[1729705904326,4.82292951,2505.8,2505.6,0.39947]
[1729705904327,0.39948,2505.7,2505.6,0.39947]
[1729705905202,0.39948,2505.6,2505.5,40.8]
[1729705905503,0.39948,2505.6,2505.5,0.3995]
[1729705905996,0.39948,2505.6,2505.5,41.19948]
[1729705908603,0.39948,2505.6,2505.5,40.8]
[1729705908799,8.83971428,2505.6,2505.5,40.8]
[1729705909001,4.84851428,2505.6,2505.5,41.1995]
[1729705909208,4.84851428,2505.6,2505.5,40.8]
[1729705909501,8.83971428,2505.6,2505.5,40.8]
[1729705911705,8.44023428,2505.6,2505.4,3.2078]
[1729705911909,0.3995,2505.5,2505.4,3.2078]
[1729705912104,5.44775428,2505.6,2505.1,6.3278]
[1729705912305,0.39954,2505.3,2505.2,41.19953]
[1729705913402,4.864839,2505.3,2505.2,41.19953]
[1729705915212,4.465299,2505.3,2505.2,41.19953]
[1729705915409,4.864829,2505.3,2505.2,41.19953]
[1729705916606,4.465299,2505.3,2505.2,41.19953]
[1729705916802,4.53201931,2505.3,2505.2,41.19953]
[1729705917000,4.93154931,2505.3,2505.2,41.19953]
[1729705917400,4.53201931,2505.3,2505.2,41.19953]
[1729705917602,4.465299,2505.3,2505.2,41.19953]
[1729705917805,0.39955,2505.2,2505.1,0.39954]
[1729705918206,0.46627481,2505.2,2505.1,0.39954]
[1729705918408,0.46627481,2505.2,2505.1,41.19954]
[1729705919103,0.46627481,2505.2,2505.1,40.8]
[1729705919324,0.39959,2504.9,2504.8,3.2078]
[1729705919507,0.46631481,2504.9,2504.8,3.2078]
[1729705919710,4.9894397,2504.9,2504.8,3.60741]
[1729705919917,4.9894397,2504.9,2504.8,44.40741]
[1729705920411,4.5898497,2504.9,2504.8,44.40741]
[1729705920606,0.06672481,2504.9,2504.8,48.39941]
[1729705920917,2.46722,2505.4,2505.3,0.39953]
[1729705921419,7.0865137,2505.4,2505.3,0.39953]
[1729705921920,0.39953,2505.3,2505.2,0.39953]
[1729705922218,0.39954,2505.2,2505.1,3.60734]
[1729705922412,0.06620522,2505.2,2505.1,3.60734]
[1729705922615,0.06620522,2505.2,2505.1,6.72734]
[1729705923115,0.06620522,2505.2,2505.1,10.71934]
[1729705923311,0.06620522,2505.4,2505.1,10.71936]
[1729705923620,0.06620522,2505.3,2505.2,0.39954]
[1729705924311,0.39952,2505.4,2505.3,0.39953]
[1729705924620,0.46572155,2505.4,2505.3,0.39953]
[1729705924816,0.39953,2505.3,2505.2,3.51954]
[1729705925118,0.39954,2505.2,2505.1,0.39955]
[1729705925312,1.77514,2505.2,2505.1,0.39955]
[1729705926114,1.77514,2505.2,2505.1,3.51955]
[1729705927719,1.10174,2505.2,2505.1,3.51955]
[1729705929926,0.6594,2505.4,2505.3,0.39953]
[1729705930132,1.05891,2505.4,2505.3,0.39953]
[1729705930319,5.5485041,2505.4,2505.3,0.39953]
[1729705930624,5.1489941,2505.4,2505.3,0.39953]
[1729705931015,5.5485041,2505.4,2505.3,0.39953]
[1729705931332,5.5485141,2505.4,2505.3,0.39953]
[1729705935336,0.39954,2505.3,2505.2,0.39954]
[1729705935532,1.11924,2505.3,2505.2,0.39954]
[1729705939236,5.11124,2505.3,2505.0,3.2078]
[1729705939436,0.6653,2505.2,2505.1,0.39954]
[1729705939738,5.28027186,2505.2,2505.1,3.51954]
[1729705941742,5.67981186,2505.2,2505.1,3.51954]
[1729705941937,5.28027186,2505.2,2505.1,3.51954]
[1729705942144,5.67981186,2505.2,2505.1,3.51954]
[1729705942636,5.28027186,2505.2,2505.1,3.51954]
[1729705942840,0.6653,2505.2,2505.1,3.51954]
[1729705943040,1.06484,2505.2,2505.1,3.51954]
[1729705943747,0.6653,2505.2,2505.1,3.51954]
[1729705943948,1.06484,2505.2,2505.1,3.51954]
[1729705948547,1.06484,2505.2,2505.1,1.83954]
[1729705948748,4.6573,2505.2,2504.8,40.8]
[1729705948948,0.39959,2504.9,2504.8,42.63959]
[1729705949247,0.39959,2504.9,2504.8,42.63961]
[1729705949639,5.03353636,2504.9,2504.8,42.63961]
[1729705950349,5.03353636,2504.9,2504.8,41.19961]
[1729705951537,0.39958,2505.0,2504.8,43.92]
[1729705951744,0.39957,2505.1,2505.0,0.39956]
[1729705951936,4.92979944,2505.1,2505.0,0.39956]
[1729705956347,0.39959,2505.0,2504.9,0.39958]
[1729705956540,4.53022944,2505.1,2504.8,43.92]
[1729705956746,4.53022944,2505.1,2504.8,41.1996]
[1729705956747,1.11859,2504.9,2504.8,41.1996]
[1729705957047,5.68867605,2504.9,2504.8,41.1996]
[1729705959349,5.68867605,2504.9,2504.8,41.35500109]
[1729705960343,5.68867605,2504.9,2504.8,0.55500109]
[1729705960548,5.28908605,2504.9,2504.8,0.55500109]
[1729705961951,5.68867605,2504.9,2504.8,0.55500109]
[1729705962152,5.28908605,2504.9,2504.8,0.55500109]
[1729705963654,5.68867605,2504.9,2504.8,0.55500109]
[1729705963848,5.68867605,2504.9,2504.8,41.1996]
[1729705967855,5.68867605,2504.9,2504.8,40.8]
[1729705968055,0.39962,2504.8,2504.7,0.39961]
[1729705968258,1.82992,2504.8,2504.7,0.39961]
[1729705968453,6.33475394,2504.8,2504.7,0.39961]
[1729705970259,6.33475394,2504.8,2504.7,1.83961]
[1729705971450,5.22193394,2504.8,2504.7,1.83961]
[1729705971761,5.22193394,2504.8,2504.7,3.27961]
[1729705972251,5.22193394,2504.8,2504.7,3.51961]
[1729705972563,5.22193394,2504.8,2504.7,44.31961]
[1729705973354,2.64136875,2504.8,2504.7,48.31241]
[1729705973561,0.39954,2505.4,2505.3,0.39951]
[1729705973856,4.70724537,2505.4,2505.3,0.39951]
[1729705974365,4.30770537,2505.4,2505.1,3.7875]
[1729705974554,4.30770537,2505.4,2505.2,0.39953]
[1729705974555,0.39954,2505.3,2505.2,0.39953]
[1729705978262,4.30770537,2505.4,2505.1,4.61205255]
[1729705978563,4.70723537,2505.4,2505.3,0.39953]
[1729705980765,4.30770537,2505.4,2505.3,0.39953]
[1729705980965,4.70721537,2505.4,2505.3,0.39953]
[1729705981155,4.30770537,2505.4,2505.3,3.51953]
[1729705981355,0.39948,2505.7,2505.6,0.39947]
[1729705981561,0.3995,2505.6,2505.5,0.39949]
[1729705981763,9.68832229,2505.8,2505.3,4.11882]
[1729705981957,0.39948,2505.7,2505.6,0.39946]
[1729705983463,6.48052229,2505.8,2505.3,7.32662]
[1729705983663,0.39949,2505.6,2505.5,0.39948]
[1729705984054,6.48052229,2505.8,2505.3,3.2078]
[1729705984254,6.48052229,2505.8,2505.1,4.61205255]
[1729705984255,0.39954,2505.3,2505.2,0.39952]
[1729705985265,0.39952,2505.4,2505.3,0.3995]
[1729705985754,4.80506076,2505.5,2505.4,0.39951]
[1729705985955,0.39951,2505.5,2505.4,0.39951]
[1729705986157,4.80506076,2505.5,2505.4,0.39951]
[1729705987452,4.40555076,2505.5,2505.4,0.39951]
[1729705987657,4.80505076,2505.5,2505.4,0.39951]
[1729705987951,6.34953,2505.8,2505.1,4.94934255]
[1729705987952,0.39949,2505.6,2505.5,0.39948]
[1729705988357,4.7039406,2505.6,2505.5,0.39948]
[1729705989564,0.39951,2505.5,2505.4,0.3995]
[1729705989763,0.39954,2505.2,2505.1,0.39955]
[1729705989959,0.39956,2505.1,2505.0,3.60736]
[1729705990262,4.62001263,2505.1,2505.0,0.39956]
[1729705991263,4.22045263,2505.1,2505.0,0.39956]
[1729705991463,4.62001263,2505.1,2505.0,0.39956]
[1729705991665,4.22045263,2505.1,2505.0,0.39956]
[1729705992270,4.62001263,2505.1,2505.0,0.39956]
[1729705993568,4.22045263,2505.1,2505.0,0.39956]
[1729705994070,0.7241,2505.4,2505.3,0.39953]
[1729705994570,5.35813531,2505.4,2505.3,3.60733]
[1729705994863,5.35813531,2505.4,2505.3,4.35233]
[1729705997370,4.63403531,2505.4,2505.3,4.35233]
[1729705997564,5.03354531,2505.4,2505.3,4.35233]
[1729705997869,1.15431,2505.4,2505.3,0.39953]
[1729705998170,5.70507664,2505.4,2505.3,0.39953]
[1729705998475,4.95027664,2505.4,2505.3,0.39953]
[1729705998664,6.42367664,2505.4,2505.3,0.39953]
[1729705999167,4.55076664,2505.4,2505.3,3.60733]
[1729705999567,4.27143374,2505.5,2505.4,0.39951]
[1729705999778,1.10439,2505.6,2505.3,3.60733]
[1729706000070,1.10439,2505.6,2505.5,0.3995]
[1729706000371,5.57506286,2505.6,2505.5,0.3995]
[1729706002974,0.39954,2505.3,2505.2,0.39952]
[1729706004167,6.17428286,2505.6,2505.1,3.2078]
[1729706004366,0.39953,2505.4,2505.3,0.39951]
[1729706004767,0.39954,2505.3,2505.2,0.39953]
[1729706005071,0.39954,2505.3,2505.1,3.2078]
[1729706005072,1.81174,2505.3,2505.1,3.2078]
[1729706005268,1.17074,2505.2,2505.1,3.60736]
[1729706006464,0.7712,2505.2,2505.1,3.60736]
[1729706006671,1.17074,2505.2,2505.1,3.60736]
[1729706007677,0.7712,2505.2,2505.1,3.60736]
[1729706008162,1.17074,2505.2,2505.1,3.60736]
[1729706008366,3.2078,2505.7,2505.1,3.2078]
[1729706008563,1.4809,2505.5,2505.1,3.2078]
[1729706008776,5.01518947,2505.4,2505.3,0.39952]
[1729706008970,0.39953,2505.4,2505.3,0.39952]
[1729706009279,5.01518947,2505.4,2505.3,0.39952]
[1729706009577,4.61565947,2505.4,2505.3,0.39952]
[1729706010474,4.61565947,2505.4,2505.3,1.83952]
[1729706014380,5.41091056,2505.5,2505.4,0.39951]
[1729706014584,5.01141056,2505.5,2505.4,0.39951]
[1729706014781,5.01141056,2505.5,2505.4,1.83951]
[1729706018595,5.01141056,2505.5,2505.4,3.27951]
[1729706018890,4.23961056,2505.5,2505.4,3.27951]
[1729706019286,4.80067995,2505.6,2505.5,0.3995]
[1729706019493,0.39948,2505.6,2505.5,1.8395]
[1729706019789,4.93223871,2505.6,2505.5,1.8395]
[1729706022692,4.53275871,2505.6,2505.5,1.8395]
[1729706023188,4.56106967,2505.7,2505.6,0.39948]
[1729706023395,0.39948,2505.7,2505.6,1.83948]
[1729706023593,4.56774865,2505.7,2505.6,1.83948]
[1729706025296,8.55894865,2505.7,2505.6,1.83948]
[1729706025490,4.56774865,2505.7,2505.6,1.83948]
[1729706026890,4.56774865,2505.7,2505.2,4.6411]
[1729706026891,9.59946865,2505.7,2505.2,3.923]
[1729706027090,0.39958,2505.0,2504.9,3.2078]
[1729706027310,1.83958,2505.0,2504.9,3.2078]
[1729706027599,1.83958,2505.0,2504.9,5.04739]
[1729706027600,4.78594214,2505.0,2504.9,5.04739]
[1729706028497,4.38636214,2505.0,2504.9,3.60739]
[1729706028794,0.39958,2505.0,2504.9,3.60739]
[1729706029095,2.1567,2505.2,2505.0,0.39958]
[1729706029300,3.2078,2505.5,2504.9,6.3278]
[1729706029495,3.2078,2505.8,2505.4,3.12]
[1729706029691,3.2078,2505.8,2505.7,0.39946]
[1729706030189,8.04159495,2505.8,2505.7,0.39946]
[1729706030395,8.79219495,2505.8,2505.7,0.39946]
[1729706030993,8.39274495,2505.8,2505.7,0.39946]
[1729706032203,8.79219495,2505.8,2505.7,0.39946]
[1729706032999,8.39274495,2505.8,2505.7,0.39946]
[1729706033193,8.79219495,2505.8,2505.7,0.39946]
[1729706033498,8.39274495,2505.8,2505.7,0.39946]
[1729706034196,8.79219495,2505.8,2505.7,0.39946]
[1729706034390,8.39274495,2505.8,2505.7,0.39946]
[1729706034591,7.64214495,2505.8,2505.7,0.39946]
[1729706037294,4.43434495,2505.8,2505.7,3.51946]
[1729706037702,4.43858679,2506.0,2505.8,0.39945]
[1729706037901,1.90821,2506.1,2505.9,1.12393]
[1729706038097,0.06618892,2506.0,2505.9,3.8445]
[1729706038304,4.50477571,2506.0,2505.9,45.04393]
[1729706038595,4.43858679,2506.0,2505.9,45.04393]
[1729706039598,0.39958,2505.0,2504.9,3.60738]
[1729706040308,2.2578,2505.2,2504.9,3.2078]
[1729706040494,3.60732,2505.4,2505.1,0.39956]
[1729706040697,0.46575063,2505.3,2505.2,0.39953]
[1729706040905,4.64242559,2505.3,2505.2,0.39953]
[1729706041499,4.17667496,2505.3,2505.2,3.51953]
[1729706041692,2.2082,2505.6,2505.2,7.112]
[1729706041693,2.60769,2505.6,2505.2,7.112]
[1729706041892,0.46570899,2505.5,2505.4,0.3995]
[1729706042204,4.89991722,2505.5,2505.4,0.3995]
[1729706042410,4.96611841,2505.5,2505.4,0.3995]
[1729706042601,4.89991722,2505.5,2505.4,0.3995]
[1729706043007,4.50040722,2505.5,2505.4,0.3995]
[1729706043309,4.50040722,2505.5,2505.4,3.5195]
[1729706043511,0.39945,2505.8,2505.4,10.319]
[1729706043809,5.09321,2506.1,2506.0,0.39942]
[1729706044104,4.75998681,2506.1,2506.0,0.39942]
[1729706044404,9.68714947,2506.1,2506.0,0.39942]
[1729706044799,9.62096266,2506.1,2506.0,0.39942]
[1729706045308,6.41316266,2506.1,2506.0,0.39942]
[1729706046597,6.41316266,2506.1,2505.7,3.12]
[1729706046598,6.01376266,2506.1,2505.7,3.12]
[1729706046798,0.39946,2505.8,2505.7,0.39945]
[1729706047207,4.59353926,2505.8,2505.7,41.19945]
[1729706047404,4.19407926,2505.8,2505.7,41.19945]
[1729706047598,4.19407926,2505.8,2505.7,44.31945]
[1729706047800,0.39944,2505.9,2505.8,0.39943]
[1729706048001,4.50388466,2505.9,2505.8,0.39943]
[1729706048300,4.6938,2506.1,2505.7,43.92]
[1729706048301,4.50388466,2506.0,2505.7,43.92]
[1729706048510,4.90331466,2506.0,2505.9,0.39943]
[1729706048709,0.39943,2506.0,2505.9,0.39943]
[1729706049200,0.39945,2505.9,2505.8,0.39944]
[1729706049702,4.35198531,2506.0,2505.7,43.92]
[1729706049906,4.35198531,2506.0,2505.9,3.51943]
[1729706050105,3.9248,2506.1,2506.0,0.39942]
[1729706051003,0.717,2506.1,2506.0,0.39942]
[1729706052104,0.39938,2506.3,2505.9,3.8876]
[1729706052407,1.14628,2506.3,2506.2,0.39938]
[1729706052804,4.94543953,2506.3,2506.2,0.39938]
[1729706053907,4.19853953,2506.3,2506.2,0.39938]
[1729706054107,4.19853953,2506.3,2506.2,1.87948]
[1729706056212,0.7548,2506.5,2506.4,0.39935]
[1729706056909,0.7738,2506.6,2506.5,0.39934]
[1729706057307,5.02934533,2506.6,2506.5,0.39934]
[1729706058208,5.42866533,2506.6,2506.5,0.39934]